bitfinex/quotes_BTCUSD_20230906
["timestamp","ask_amount","ask_price","bid_price","bid_amount"]
[1693973709316,3.36194935,25786.0,25785.0,0.00916719]
[1693973709554,3.59371331,25786.0,25785.0,0.00916719]
[1693973709769,3.59347331,25786.0,25785.0,0.00916719]
[1693973709963,3.59317331,25786.0,25785.0,0.00916719]
[1693973710216,3.59323331,25786.0,25785.0,0.00916719]
[1693973710446,3.59305331,25786.0,25785.0,0.00916719]
[1693973710667,3.59275331,25786.0,25785.0,0.00916719]
[1693973710876,3.59149331,25786.0,25785.0,0.00916719]
[1693973711092,3.59113331,25786.0,25785.0,0.00916719]
[1693973711292,3.78926707,25786.0,25785.0,0.00916719]
[1693973711587,3.78872707,25786.0,25785.0,0.00916719]
[1693973711799,3.78836707,25786.0,25785.0,0.00916719]
[1693973712006,3.79040707,25786.0,25785.0,0.00916719]
[1693973712206,3.79022707,25786.0,25785.0,0.00916719]
[1693973712424,3.78938707,25786.0,25785.0,0.00916719]
[1693973712621,3.78908707,25786.0,25785.0,0.00916719]
[1693973712782,3.78716707,25786.0,25785.0,0.00916719]
[1693973713026,3.78884707,25786.0,25785.0,0.00916719]
[1693973713168,3.78854707,25786.0,25785.0,0.00916719]
[1693973713390,3.78848707,25786.0,25785.0,0.00916719]
[1693973713582,3.78824707,25786.0,25785.0,0.00916719]
[1693973713841,3.78812707,25786.0,25785.0,0.00916719]
[1693973713988,3.78794707,25786.0,25785.0,0.00916719]
[1693973714203,3.78848707,25786.0,25785.0,0.00916719]
[1693973714541,3.79028707,25786.0,25785.0,0.00916719]
[1693973714871,3.79004707,25786.0,25785.0,0.00916719]
[1693973715075,3.59155331,25786.0,25785.0,0.00916719]
[1693973715305,3.58579331,25786.0,25785.0,0.00916719]
[1693973715482,3.58561331,25786.0,25785.0,0.00916719]
[1693973715721,3.58537331,25786.0,25785.0,0.00916719]
[1693973715895,3.58525331,25786.0,25785.0,0.00916719]
[1693973716099,3.97183858,25786.0,25785.0,0.00916719]
[1693973716258,3.97177858,25786.0,25785.0,0.00916719]
[1693973716454,3.97165858,25786.0,25785.0,0.00916719]
[1693973716654,3.97141858,25786.0,25785.0,0.00916719]
[1693973716859,3.97135858,25786.0,25785.0,0.00916719]
[1693973717036,3.97123858,25786.0,25785.0,0.00916719]
[1693973717237,4.15600348,25786.0,25785.0,0.00916719]
[1693973717448,3.76893821,25786.0,25785.0,0.00916719]
[1693973717652,3.58351331,25786.0,25785.0,0.00916719]
[1693973717854,3.58159331,25786.0,25785.0,0.00916719]
[1693973718056,3.58147331,25786.0,25785.0,0.00916719]
[1693973718258,3.58135331,25786.0,25785.0,0.00916719]
[1693973718458,3.58315331,25786.0,25785.0,0.00916719]
[1693973718659,3.76846322,25786.0,25785.0,0.00916719]
[1693973718904,3.76834322,25786.0,25785.0,0.00916719]
[1693973719106,3.76828322,25786.0,25785.0,0.00916719]
[1693973719310,3.76822322,25786.0,25785.0,0.00916719]
[1693973719528,3.76810322,25786.0,25785.0,0.00916719]
[1693973719761,3.76786322,25786.0,25785.0,0.00916719]
[1693973719964,3.76792322,25786.0,25785.0,0.00916719]
[1693973720144,3.76780322,25786.0,25785.0,0.00916719]
[1693973720351,3.76762322,25786.0,25785.0,0.00916719]
[1693973720662,3.76780322,25786.0,25785.0,0.00916719]
[1693973720862,3.76774322,25786.0,25785.0,0.00916719]
[1693973721306,3.75094322,25786.0,25785.0,0.00916719]
[1693973721507,3.75790322,25786.0,25785.0,0.00916719]
[1693973721709,3.75670322,25786.0,25785.0,0.00916719]
[1693973721929,3.75730322,25786.0,25785.0,0.00916719]
[1693973722135,3.75718322,25786.0,25785.0,0.00916719]
[1693973722321,3.75730322,25786.0,25785.0,0.00916719]
[1693973722520,3.75766322,25786.0,25785.0,0.00916719]
[1693973722724,3.75784322,25786.0,25785.0,0.00916719]
[1693973722936,3.75808322,25786.0,25785.0,0.00916719]
[1693973723138,3.75826322,25786.0,25785.0,0.00916719]
[1693973723343,3.75856322,25786.0,25785.0,0.00916719]
[1693973723515,3.75844322,25786.0,25785.0,0.00916719]
[1693973723719,3.75880322,25786.0,25785.0,0.00916719]
[1693973723875,4.01483279,25786.0,25785.0,0.00916719]
[1693973724076,4.01351279,25786.0,25785.0,0.00916719]
[1693973724281,4.01363279,25786.0,25785.0,0.00916719]
[1693973724481,4.01309279,25786.0,25785.0,0.00916719]
[1693973724763,4.01351279,25786.0,25785.0,0.00916719]
[1693973724938,4.01357279,25786.0,25785.0,0.00916719]
[1693973725148,4.01381279,25786.0,25785.0,0.00916719]
[1693973725343,4.01393279,25786.0,25785.0,0.00916719]
[1693973725553,4.01405279,25786.0,25785.0,0.00916719]
[1693973725710,4.01309279,25786.0,25785.0,0.00916719]
[1693973725921,4.01315279,25786.0,25785.0,0.00916719]
[1693973726125,4.01339279,25786.0,25785.0,0.00916719]
[1693973726326,4.01345279,25786.0,25785.0,0.00916719]
[1693973726748,4.01351279,25786.0,25785.0,0.00916719]
[1693973726950,4.01393279,25786.0,25785.0,0.00916719]
[1693973727154,4.01399279,25786.0,25785.0,0.00916719]
[1693973727350,4.01429279,25786.0,25785.0,0.00916719]
[1693973727824,4.01441279,25786.0,25785.0,0.00916719]
[1693973728081,4.01483279,25786.0,25785.0,0.00916719]
[1693973728325,4.01489279,25786.0,25785.0,0.00916719]
[1693973728529,4.01501279,25786.0,25785.0,0.00916719]
[1693973728836,3.68356322,25786.0,25785.0,0.00916719]
[1693973729052,2.52098975,25786.0,25785.0,0.13933778]
[1693973729490,3.11117384,25786.0,25785.0,0.13933778]
[1693973729927,2.33555984,25786.0,25785.0,0.13933778]
[1693973730134,0.78433184,25786.0,25785.0,0.13933778]
[1693973730775,1.55994584,25786.0,25785.0,0.13933778]
[1693973731518,0.78433184,25786.0,25785.0,0.13933778]
[1693973732129,0.78435353,25786.0,25785.0,0.13933778]
[1693973732559,0.87708733,25786.0,25785.0,0.13933778]
[1693973733412,0.74533357,25786.0,25785.0,0.13933778]
[1693973733599,0.78720244,25786.0,25785.0,0.13933778]
[1693973733973,1.65555577,25786.0,25785.0,0.13933778]
[1693973734175,1.56281644,25786.0,25785.0,0.13933778]
[1693973734426,1.65555749,25786.0,25785.0,0.13933778]
[1693973734752,1.56281644,25786.0,25785.0,0.13933778]
[1693973741409,0.77510552,25786.0,25785.0,0.91498178]
[1693973741609,0.78720244,25786.0,25785.0,0.13933778]
[1693973744710,0.97266641,25786.0,25785.0,0.13933778]
[1693973750497,0.78720244,25786.0,25785.0,0.13933778]
[1693973750912,0.97266641,25786.0,25785.0,0.13933778]
[1693973752293,0.78720244,25786.0,25785.0,0.13933778]
[1693973757143,0.77510552,25786.0,25785.0,2.46626978]
[1693973757875,0.86792504,25786.0,25785.0,2.46626978]
[1693973758506,0.86792504,25786.0,25785.0,1.69062578]
[1693973760495,0.72882707,25786.0,25785.0,1.69062578]
[1693973762522,0.68963366,25786.0,25785.0,1.69062578]
[1693973763229,0.68963366,25786.0,25785.0,2.46626978]
[1693973776556,0.68963366,25786.0,25785.0,2.46624063]
[1693973778920,0.68963366,25786.0,25785.0,1.69059663]
[1693973779279,0.73591211,25786.0,25785.0,1.69059663]
[1693973785800,1.51152611,25786.0,25785.0,0.13930863]
[1693973786000,2.28714011,25786.0,25785.0,0.13930863]
[1693973786499,3.36858703,25786.0,25785.0,0.13930863]
[1693973786701,2.59297303,25786.0,25785.0,0.13930863]
[1693973786858,1.81735903,25786.0,25785.0,0.00913804]
[1693973787054,1.69720793,25786.0,25785.0,0.00913804]
[1693973787254,0.92159393,25786.0,25785.0,0.00913804]
[1693973789033,2.47282193,25786.0,25785.0,0.00913804]
[1693973790536,3.31419593,25786.0,25785.0,0.00913804]
[1693973790731,3.31509593,25786.0,25785.0,0.00913804]
[1693973790881,3.31875593,25786.0,25785.0,0.00913804]
[1693973791080,3.31797593,25786.0,25785.0,0.00913804]
[1693973791295,3.31695593,25786.0,25785.0,0.00913804]
[1693973791494,3.31671593,25786.0,25785.0,0.00913804]
[1693973791695,3.17710011,25786.0,25785.0,0.00913804]
[1693973791892,3.17686011,25786.0,25785.0,0.00913804]
[1693973792218,3.17650011,25786.0,25785.0,0.00913804]
[1693973792577,3.17584011,25786.0,25785.0,0.00913804]
[1693973792758,2.33350611,25786.0,25785.0,0.00913804]
[1693973794260,1.55789211,25786.0,25785.0,0.00913804]
[1693973796494,0.78227811,25786.0,25785.0,0.00913804]
[1693973802361,1.55789211,25786.0,25785.0,0.00913804]
[1693973804894,2.33350611,25786.0,25785.0,0.00913804]
[1693973809785,2.59290458,25786.0,25785.0,0.00913804]
[1693973809991,2.82473454,25786.0,25785.0,0.00913804]
[1693973810503,2.63927057,25786.0,25785.0,0.00913804]
[1693973810804,2.82504851,25786.0,25785.0,0.00913804]
[1693973811348,3.60066251,25786.0,25785.0,0.00913804]
[1693973813675,2.82504851,25786.0,25785.0,0.00913804]
[1693973815673,3.85191036,25786.0,25785.0,0.00913804]
[1693973815871,3.85497036,25786.0,25785.0,0.00913804]
[1693973816274,3.85191036,25786.0,25785.0,0.00913804]
[1693973816451,3.85215036,25786.0,25785.0,0.00913804]
[1693973816670,3.84957036,25786.0,25785.0,0.00913804]
[1693973816881,3.84909036,25786.0,25785.0,0.00913804]
[1693973817040,3.84915036,25786.0,25785.0,0.00913804]
[1693973817239,3.84903036,25786.0,25785.0,0.00913804]
[1693973817434,3.83823036,25786.0,25785.0,0.00913804]
[1693973817640,3.83319036,25786.0,25785.0,0.00913804]
[1693973817889,3.83133036,25786.0,25785.0,0.00913804]
[1693973818039,3.82887036,25786.0,25785.0,0.00913804]
[1693973818240,3.76161036,25786.0,25785.0,0.00913804]
[1693973818870,1.13964959,25786.0,25785.0,0.00913804]
[1693973819118,1.91526359,25786.0,25785.0,0.00913804]
[1693973819256,2.69087759,25786.0,25785.0,0.00913804]
[1693973819450,1.91526359,25786.0,25785.0,0.00913804]
[1693973820863,2.69087759,25786.0,25785.0,0.00913804]
[1693973821485,1.91526359,25786.0,25785.0,0.00913804]
[1693973821904,2.69087759,25786.0,25785.0,0.00913804]
[1693973822306,1.91526359,25786.0,25785.0,0.00913804]
[1693973824907,2.69087759,25786.0,25785.0,0.00913804]
[1693973825523,1.91526359,25786.0,25785.0,0.00913804]
[1693973825721,2.69087759,25786.0,25785.0,0.00913804]
[1693973829184,1.91526359,25786.0,25785.0,0.00913804]
[1693973829594,1.13964959,25786.0,25785.0,0.82951737]
[1693973829799,1.32541157,25786.0,25785.0,0.82951737]
[1693973830180,1.09326492,25786.0,25785.0,0.82951737]
[1693973830378,1.09326492,25786.0,25785.0,0.05387337]
[1693973830591,1.09326492,25786.0,25785.0,0.00913804]
[1693973830592,2.64449292,25786.0,25785.0,0.00913804]
[1693973832761,3.46649159,25786.0,25785.0,0.00913804]
[1693973834353,3.53177345,25786.0,25785.0,0.00913804]
[1693973836136,3.73529164,25786.0,25785.0,0.00913804]
[1693973836338,3.73655164,25786.0,25785.0,0.00913804]
[1693973836583,3.73715164,25786.0,25785.0,0.00913804]
[1693973836767,3.73811164,25786.0,25785.0,0.00913804]
[1693973836964,3.73391164,25786.0,25785.0,0.00913804]
[1693973837140,3.73505164,25786.0,25785.0,0.00913804]
[1693973837349,3.73727164,25786.0,25785.0,0.00913804]
[1693973837654,3.73643164,25786.0,25785.0,0.00913804]
[1693973837863,3.72791164,25786.0,25785.0,0.00913804]
[1693973838108,3.66263164,25786.0,25785.0,0.00913804]
[1693973839038,3.73649164,25786.0,25785.0,0.00913804]
[1693973839235,3.73631164,25786.0,25785.0,0.00913804]
[1693973839445,3.51190499,25786.0,25785.0,0.00913804]
[1693973839650,3.51256499,25786.0,25785.0,0.00913804]
[1693973839954,3.51100499,25786.0,25785.0,0.00913804]
[1693973840153,3.51106499,25786.0,25785.0,0.00913804]
[1693973840357,3.50788499,25786.0,25785.0,0.00913804]
[1693973840539,3.50770499,25786.0,25785.0,0.00913804]
[1693973840733,3.50974499,25786.0,25785.0,0.00913804]
[1693973840941,3.50956499,25786.0,25785.0,0.00913804]
[1693973841139,3.50926499,25786.0,25785.0,0.00913804]
[1693973841339,3.50962499,25786.0,25785.0,0.00913804]
[1693973841547,3.50950499,25786.0,25785.0,0.00913804]
[1693973841769,3.50932499,25786.0,25785.0,0.00913804]
[1693973841947,3.50914499,25786.0,25785.0,0.00913804]
[1693973842102,3.50680499,25786.0,25785.0,0.00913804]
[1693973842327,3.52192499,25786.0,25785.0,0.00913804]
[1693973842527,3.50590499,25786.0,25785.0,0.00913804]
[1693973842729,3.50332499,25786.0,25785.0,0.00913804]
[1693973842925,3.50308499,25786.0,25785.0,0.00913804]
[1693973843135,3.50314499,25786.0,25785.0,0.00913804]
[1693973843332,3.50092499,25786.0,25785.0,0.00913804]
[1693973843537,3.49948499,25786.0,25785.0,0.00913804]
[1693973843740,3.49954499,25786.0,25785.0,0.00913804]
[1693973843942,3.49930499,25786.0,25785.0,0.00913804]
[1693973844141,3.49906499,25786.0,25785.0,0.00913804]
[1693973844342,3.49894499,25786.0,25785.0,0.00913804]
[1693973844549,3.49648499,25786.0,25785.0,0.00913804]
[1693973844746,3.49606499,25786.0,25785.0,0.00913804]
[1693973844949,3.49600499,25786.0,25785.0,0.00913804]
[1693973845190,3.49588499,25786.0,25785.0,0.00913804]
[1693973845649,3.49582499,25786.0,25785.0,0.00913804]
[1693973845843,3.49576499,25786.0,25785.0,0.00913804]
[1693973846088,3.43048499,25786.0,25785.0,0.00913804]
[1693973846295,3.49582499,25786.0,25785.0,0.00913804]
[1693973846500,3.49594499,25786.0,25785.0,0.00913804]
[1693973846700,3.49576499,25786.0,25785.0,0.00913804]
[1693973846920,3.43048499,25786.0,25785.0,0.00913804]
[1693973847100,3.432293,25786.0,25785.0,0.00913804]
[1693973847732,3.66446725,25786.0,25785.0,0.00913804]
[1693973847953,3.36701114,25786.0,25785.0,0.00913804]
[1693973852922,3.59921581,25786.0,25785.0,0.00913804]
[1693973853711,3.36701114,25786.0,25785.0,0.00913804]
[1693973854489,3.36684499,25786.0,25785.0,0.00913804]
[1693973855464,2.8234549,25786.0,25785.0,0.00913804]
[1693973856422,1.14136871,25786.0,25785.0,0.00913804]
[1693973856627,1.32715909,25786.0,25785.0,0.15347246]
[1693973856825,1.91698271,25786.0,25785.0,0.15347246]
[1693973858436,1.91698271,25786.0,25785.0,0.00913804]
[1693973861460,1.42371847,25786.0,25785.0,0.00913804]
[1693973861661,1.91682335,25786.0,25785.0,0.00913804]
[1693973862812,2.69243735,25786.0,25785.0,0.00913804]
[1693973865580,2.69243735,25786.0,25785.0,0.16361547]
[1693973865761,1.14120935,25786.0,25785.0,1.71490347]
[1693973866325,1.14120935,25786.0,25785.0,0.93925947]
[1693973868132,1.14120935,25786.0,25785.0,0.16361547]
[1693973871040,1.14120935,25786.0,25785.0,0.93925947]
[1693973872608,1.32699243,25786.0,25785.0,0.93925947]
[1693973872782,1.32699243,25786.0,25785.0,0.16361547]
[1693973874187,1.32699243,25786.0,25785.0,0.93925947]
[1693973875773,1.32699243,25786.0,25785.0,0.16361547]
[1693973876391,1.32699243,25786.0,25785.0,0.93925947]
[1693973877162,1.09475263,25786.0,25785.0,0.93925947]
[1693973878318,1.09475263,25786.0,25785.0,1.71490347]
[1693973883348,0.72890428,25786.0,25785.0,2.49054747]
[1693973886344,0.72887867,25786.0,25785.0,2.49054747]
[1693973887387,0.74097559,25786.0,25785.0,2.49054747]
[1693973887766,0.88028228,25786.0,25785.0,2.49054747]
[1693973893037,0.75998228,25786.0,25785.0,2.49054747]
[1693973898281,0.52780447,25786.0,25785.0,2.49054747]
[1693973898875,0.62067559,25786.0,25785.0,2.49054747]
[1693973899336,0.1411592,25786.0,25785.0,2.49054747]
[1693973899871,0.23403032,25786.0,25785.0,2.49054747]
[1693973903131,0.35433032,25786.0,25785.0,2.49054747]
[1693973906253,0.74097559,25786.0,25785.0,0.93925947]
[1693973908448,0.88028228,25786.0,25785.0,0.93925947]
[1693973908826,0.74097559,25786.0,25785.0,0.93925947]
[1693973909244,0.74097559,25786.0,25785.0,0.16361547]
[1693973909455,0.88028228,25786.0,25785.0,0.16361547]
[1693973909658,1.65589628,25786.0,25785.0,0.16361547]
[1693973910273,0.88028228,25786.0,25785.0,0.16361547]
[1693973913673,0.83841341,25786.0,25785.0,0.93925947]
[1693973913876,0.83841341,25786.0,25785.0,1.71490347]
[1693973914033,0.88028811,25786.0,25785.0,1.71490347]
[1693973916769,0.88028811,25786.0,25785.0,2.49054747]
[1693973918316,0.74098142,25786.0,25785.0,2.49054747]
[1693973920270,0.74098142,25786.0,25785.0,2.49054747]
[1693973922027,0.74098142,25786.0,25785.0,1.71490347]
[1693973922235,0.88028811,25786.0,25785.0,1.71490347]
[1693973922842,0.78741699,25786.0,25785.0,1.71490347]
[1693973929473,0.78741699,25786.0,25785.0,0.93925947]
[1693973933320,0.40077172,25786.0,25785.0,0.93925947]
[1693973933645,0.49369601,25786.0,25785.0,2.49054747]
[1693973933851,0.49369601,25786.0,25785.0,1.71490347]
[1693973934896,0.49369601,25786.0,25785.0,2.49054747]
[1693973935106,0.49369601,25786.0,25785.0,1.71490347]
[1693973935958,0.37339601,25786.0,25785.0,1.71490347]
[1693973936600,0.37339601,25786.0,25785.0,2.49054747]
[1693973939381,0.37339842,25786.0,25785.0,1.71490347]
[1693973941369,0.37339842,25786.0,25785.0,2.49054747]
[1693973943064,0.23409173,25786.0,25785.0,2.49054747]
[1693973943475,0.1828014,25786.0,25785.0,2.49054747]
[1693973943919,0.32210809,25786.0,25785.0,2.49054747]
[1693973944053,0.37339842,25786.0,25785.0,2.49054747]
[1693973950688,0.28047172,25786.0,25785.0,2.49054747]
[1693973951511,0.28047172,25786.0,25785.0,1.71490347]
[1693973952526,0.28047172,25786.0,25785.0,2.49054747]
[1693973954703,0.2805519,25786.0,25785.0,2.49054747]
[1693973956649,0.2805519,25786.0,25785.0,2.49059418]
[1693973957781,0.66719717,25786.0,25785.0,2.49059418]
[1693973958003,1.17558109,25786.0,25785.0,0.16366218]
[1693973958186,1.40789255,25786.0,25785.0,0.16366218]
[1693973958639,1.17558109,25786.0,25785.0,0.16366218]
[1693973958878,1.05381592,25786.0,25785.0,0.16366218]
[1693973959360,0.91441512,25786.0,25785.0,0.16366218]
[1693973960492,1.05381132,25786.0,25785.0,0.16366218]
[1693973964034,0.97335566,25786.0,25785.0,0.16366218]
[1693973967889,0.97335566,25786.0,25785.0,0.93930618]
[1693973975347,0.97335566,25786.0,25785.0,0.16366218]
[1693973977789,0.97335566,25786.0,25785.0,0.93930618]
[1693973984178,1.74896966,25786.0,25785.0,0.16366218]
[1693973984331,2.52458366,25786.0,25785.0,0.16366218]
[1693973984531,2.52458366,25786.0,25785.0,0.00918475]
[1693973988194,2.91122893,25786.0,25785.0,0.00918475]
[1693973991622,2.77183273,25786.0,25785.0,0.00918475]
[1693973992260,2.91128795,25786.0,25785.0,0.00918475]
[1693973992640,2.77183273,25786.0,25785.0,0.00918475]
[1693973993518,3.26682997,25786.0,25785.0,0.00918475]
[1693973995334,2.8801847,25786.0,25785.0,0.00918475]
[1693973996749,3.31623808,25786.0,25785.0,0.00918475]
[1693973996923,3.30411808,25786.0,25785.0,0.00918475]
[1693973997149,3.30387808,25786.0,25785.0,0.00918475]
[1693973997347,3.30405808,25786.0,25785.0,0.00918475]
[1693973997594,3.30603808,25786.0,25785.0,0.00918475]
[1693973997937,3.70216335,25786.0,25785.0,0.00918475]
[1693973998141,3.70276335,25786.0,25785.0,0.00918475]
[1693973998288,3.70318335,25786.0,25785.0,0.00918475]
[1693973998495,3.70312335,25786.0,25785.0,0.00918475]
[1693973998697,3.70348335,25786.0,25785.0,0.00918475]
[1693973998905,3.70060335,25786.0,25785.0,0.00918475]
[1693973999131,3.70084335,25786.0,25785.0,0.00918475]
[1693973999851,3.70060335,25786.0,25785.0,0.00918475]
[1693974000284,3.70078335,25786.0,25785.0,0.00918475]
[1693974000435,3.70072335,25786.0,25785.0,0.00918475]
[1693974000640,3.70060335,25786.0,25785.0,0.00918475]
[1693974000836,3.70066335,25786.0,25785.0,0.00918475]
[1693974001198,3.31545808,25786.0,25785.0,0.00918475]
[1693974001408,3.31893808,25786.0,25785.0,0.00918475]
[1693974001551,3.31935808,25786.0,25785.0,0.00918475]
[1693974001750,3.31929808,25786.0,25785.0,0.00918475]
[1693974001965,3.31917808,25786.0,25785.0,0.00918475]
[1693974002177,3.70588335,25786.0,25785.0,0.00918475]
[1693974002509,3.70462335,25786.0,25785.0,0.00918475]
[1693974002654,3.70456335,25786.0,25785.0,0.00918475]
[1693974002851,3.70450335,25786.0,25785.0,0.00918475]
[1693974003264,3.70444335,25786.0,25785.0,0.00918475]
[1693974003464,3.70438335,25786.0,25785.0,0.00918475]
[1693974003662,3.70426335,25786.0,25785.0,0.00918475]
[1693974003864,3.70420335,25786.0,25785.0,0.00918475]
[1693974004088,3.70396335,25786.0,25785.0,0.00918475]
[1693974004293,3.70384335,25786.0,25785.0,0.00918475]
[1693974004728,3.70372335,25786.0,25785.0,0.00918475]
[1693974004859,3.70366335,25786.0,25785.0,0.00918475]
[1693974005059,3.70474335,25786.0,25785.0,0.00918475]
[1693974005266,3.70450335,25786.0,25785.0,0.00918475]
[1693974005509,3.70444335,25786.0,25785.0,0.00918475]
[1693974005711,3.70396335,25786.0,25785.0,0.00918475]
[1693974006116,3.70390335,25786.0,25785.0,0.00918475]
[1693974006323,3.70384335,25786.0,25785.0,0.00918475]
[1693974006573,3.70312335,25786.0,25785.0,0.00918475]
[1693974006974,3.70306335,25786.0,25785.0,0.00918475]
[1693974007176,3.70300335,25786.0,25785.0,0.00918475]
[1693974007403,3.70288335,25786.0,25785.0,0.00918475]
[1693974007877,3.70282335,25786.0,25785.0,0.00918475]
[1693974008222,3.31611808,25786.0,25785.0,0.00918475]
[1693974008410,3.31503808,25786.0,25785.0,0.00918475]
[1693974008745,3.31473808,25786.0,25785.0,0.00918475]
[1693974008950,3.31467808,25786.0,25785.0,0.00918475]
[1693974009375,3.54694276,25786.0,25785.0,0.00918475]
[1693974009616,3.54688276,25786.0,25785.0,0.00918475]
[1693974009821,3.54694276,25786.0,25785.0,0.00918475]
[1693974010022,3.54688276,25786.0,25785.0,0.00918475]
[1693974010229,3.54682276,25786.0,25785.0,0.00918475]
[1693974010440,3.54700276,25786.0,25785.0,0.00918475]
[1693974010638,3.54736276,25786.0,25785.0,0.00918475]
[1693974010861,3.54676276,25786.0,25785.0,0.00918475]
[1693974011085,3.93352803,25786.0,25785.0,0.00918475]
[1693974011299,3.93406803,25786.0,25785.0,0.00918475]
[1693974011500,3.93412803,25786.0,25785.0,0.00918475]
[1693974011729,3.93424803,25786.0,25785.0,0.00918475]
[1693974011929,3.93418803,25786.0,25785.0,0.00918475]
[1693974012290,3.93412803,25786.0,25785.0,0.00918475]
[1693974012496,3.93214803,25786.0,25785.0,0.00918475]
[1693974012693,3.92440803,25786.0,25785.0,0.00918475]
[1693974012893,3.53818276,25786.0,25785.0,0.00918475]
[1693974013162,3.30813808,25786.0,25785.0,0.00918475]
[1693974013511,3.30819808,25786.0,25785.0,0.00918475]
[1693974013865,3.31077808,25786.0,25785.0,0.00918475]
[1693974014096,3.31095808,25786.0,25785.0,0.00918475]
[1693974014306,3.31113808,25786.0,25785.0,0.00918475]
[1693974014487,3.30987808,25786.0,25785.0,0.00918475]
[1693974014660,3.31005808,25786.0,25785.0,0.00918475]
[1693974014865,3.23763808,25786.0,25785.0,0.00918475]
[1693974016837,3.30297808,25786.0,25785.0,0.00918475]
[1693974017066,3.23763808,25786.0,25785.0,0.00918475]
[1693974022046,3.30297808,25786.0,25785.0,0.00918475]
[1693974022243,3.30315808,25786.0,25785.0,0.00918475]
[1693974022576,3.30357808,25786.0,25785.0,0.00918475]
[1693974022780,3.30399808,25786.0,25785.0,0.00918475]
[1693974022977,3.30417808,25786.0,25785.0,0.00918475]
[1693974023183,3.30435808,25786.0,25785.0,0.00918475]
[1693974023385,3.30399808,25786.0,25785.0,0.00918475]
[1693974023566,3.30441808,25786.0,25785.0,0.00918475]
[1693974023768,3.30477808,25786.0,25785.0,0.00918475]
[1693974023968,3.30489808,25786.0,25785.0,0.00918475]
[1693974024174,3.30507808,25786.0,25785.0,0.00918475]
[1693974024343,3.30555808,25786.0,25785.0,0.00918475]
[1693974024549,3.30525808,25786.0,25785.0,0.00918475]
[1693974024846,3.30555808,25786.0,25785.0,0.00918475]
[1693974025047,3.30573808,25786.0,25785.0,0.00918475]
[1693974025336,3.30591808,25786.0,25785.0,0.00918475]
[1693974025535,3.30603808,25786.0,25785.0,0.00918475]
[1693974025645,3.30621808,25786.0,25785.0,0.00918475]
[1693974025874,3.30651808,25786.0,25785.0,0.00918475]
[1693974026078,3.30783808,25786.0,25785.0,0.00918475]
[1693974026292,3.30795808,25786.0,25785.0,0.00918475]
[1693974026504,0.98129608,25786.0,25785.0,0.05360188]
[1693974026707,0.91079608,25786.0,25785.0,0.82924588]
[1693974026909,1.32882179,25786.0,25785.0,0.82924588]
[1693974027752,1.09658473,25786.0,25785.0,0.82924588]
[1693974027961,1.32882179,25786.0,25785.0,0.82924588]
[1693974029001,1.32882179,25786.0,25785.0,0.05360188]
[1693974034480,1.14303314,25786.0,25785.0,0.05360188]
[1693974036004,1.14303314,25786.0,25785.0,0.00918475]
[1693974036405,1.91864714,25786.0,25785.0,0.00918475]
[1693974037404,2.28396558,25786.0,25785.0,0.00918475]
[1693974037931,1.91864714,25786.0,25785.0,0.00918475]
[1693974038142,1.14303314,25786.0,25785.0,0.00918475]
[1693974038354,1.3289219,25786.0,25785.0,1.66432646]
[1693974038563,1.09668484,25786.0,25785.0,1.66432646]
[1693974038969,1.09668484,25786.0,25785.0,0.88868246]
[1693974039178,1.09668484,25786.0,25785.0,0.11303846]
[1693974039600,1.3289219,25786.0,25785.0,0.11303846]
[1693974044973,2.1045359,25786.0,25785.0,0.11303846]
[1693974045285,1.87229884,25786.0,25785.0,0.11303846]
[1693974045487,1.87229884,25786.0,25785.0,0.00918475]
[1693974045488,3.03455811,25786.0,25785.0,0.00918475]
[1693974046509,2.25894411,25786.0,25785.0,0.00918475]
[1693974046709,1.48333011,25786.0,25785.0,0.00918475]
[1693974047121,1.09668484,25786.0,25785.0,0.00918475]
[1693974047885,1.09668484,25786.0,25785.0,0.14684031]
[1693974049186,1.87229884,25786.0,25785.0,0.14684031]
[1693974049686,2.64791284,25786.0,25785.0,0.14684031]
[1693974050348,2.64791284,25786.0,25785.0,0.00918475]
[1693974050946,2.7663077,25786.0,25785.0,0.00918475]
[1693974051510,1.9906937,25786.0,25785.0,0.00918475]
[1693974052724,1.87229884,25786.0,25785.0,0.00918475]
[1693974053128,1.87229884,25786.0,25785.0,0.13259847]
[1693974053906,1.09668484,25786.0,25785.0,0.13259847]
[1693974055054,1.09668484,25786.0,25785.0,1.68388647]
[1693974055055,0.78753345,25786.0,25785.0,1.68388647]
[1693974057128,0.78753345,25786.0,25785.0,0.90824247]
[1693974059327,0.88047144,25786.0,25785.0,0.90824247]
[1693974059531,0.88047144,25786.0,25785.0,0.13259847]
[1693974059734,0.78753345,25786.0,25785.0,0.90824247]
[1693974060442,0.78753345,25786.0,25785.0,1.68388647]
[1693974061078,0.88047926,25786.0,25785.0,1.68388647]
[1693974061254,0.78753345,25786.0,25785.0,1.68388647]
[1693974061802,0.88047914,25786.0,25785.0,1.68388647]
[1693974062217,0.78753345,25786.0,25785.0,1.68388647]
[1693974062638,0.6481103,25786.0,25785.0,1.68388647]
[1693974062843,0.78752799,25786.0,25785.0,1.68388647]
[1693974070075,0.6481103,25786.0,25785.0,1.68388647]
[1693974070274,0.78754636,25786.0,25785.0,1.68388647]
[1693974073435,0.78754636,25786.0,25785.0,2.45953047]
[1693974083544,0.40090109,25786.0,25785.0,2.45953047]
[1693974083758,0.38880417,25786.0,25785.0,2.45953047]
[1693974084341,0.40090109,25786.0,25785.0,2.45953047]
[1693974085516,0.49389856,25786.0,25785.0,2.45953047]
[1693974085744,0.48180164,25786.0,25785.0,2.45953047]
[1693974085943,0.0898747,25786.0,25785.0,3.31996383]
[1693974086153,0.0898747,25786.0,25785.0,3.29996383]
[1693974086297,0.048,25786.0,25785.0,3.29996383]
[1693974086723,0.048,25786.0,25785.0,4.06877042]
[1693974086926,0.09299747,25790.0,25787.0,0.08790308]
[1693974087135,0.09299747,25790.0,25788.0,3.26107472]
[1693974087341,0.04240969,25789.0,25788.0,3.26107472]
[1693974087769,0.04240969,25789.0,25788.0,3.26136576]
[1693974089429,0.04940969,25789.0,25788.0,3.26136576]
[1693974090471,0.05340969,25789.0,25788.0,3.26136576]
[1693974096418,0.05340969,25789.0,25788.0,3.34926884]
[1693974097811,0.011,25789.0,25788.0,3.34926884]
[1693974098187,0.011,25789.0,25788.0,3.32926884]
[1693974101037,0.05353663,25789.0,25788.0,3.32926884]
[1693974101466,0.011,25789.0,25788.0,3.32926884]
[1693974102838,0.05353663,25789.0,25788.0,3.32136576]
[1693974103038,0.011,25789.0,25788.0,3.32136576]
[1693974104235,0.05353663,25789.0,25788.0,3.32136576]
[1693974104440,0.011,25789.0,25788.0,3.32136576]
[1693974105942,0.011,25789.0,25788.0,3.29824969]
[1693974106387,0.011,25789.0,25788.0,3.16250704]
[1693974108084,0.011,25789.0,25788.0,3.31602358]
[1693974109065,0.011,25789.0,25788.0,3.16250704]
[1693974109884,0.011,25789.0,25788.0,0.06029104]
[1693974110107,0.011,25789.0,25788.0,2.38695304]
[1693974110626,0.05353663,25789.0,25788.0,3.30498731]
[1693974110841,0.011,25789.0,25788.0,3.30498731]
[1693974111333,0.011,25789.0,25788.0,3.16250704]
[1693974113810,0.011,25789.0,25788.0,3.30094565]